fUSD/lending_fUSD_20250103
["ID","MTS","AMOUNT","RATE_DAILY","PERIOD"]
[347598842,1735939843752,-500.0,0.00011997,2]
[347598843,1735939843762,-500.0,0.00011997,2]
[347598844,1735939843771,-500.0,0.00011997,2]
[347598845,1735939843781,-500.0,0.00011997,2]
[347598846,1735939843790,-500.0,0.00011997,2]
[347598847,1735939843799,-500.0,0.00011997,2]
[347598848,1735939843808,-500.0,0.00011997,2]
[347598849,1735939843818,-500.0,0.00011997,2]
[347598850,1735939843827,-500.0,0.00011997,2]
[347598851,1735939843837,-500.0,0.00011997,2]
[347598852,1735939843846,-567.36,0.00011997,2]
[347598853,1735939843856,-500.0,0.00011997,2]
[347598854,1735939843865,-500.0,0.00011997,2]
[347598855,1735939843875,-606.4,0.00011997,2]
[347598856,1735939843885,-1040.12,0.00011997,2]
[347598857,1735939843895,-1955.45,0.00011997,2]
[347598858,1735939843905,-1178.25,0.00011997,2]
[347598859,1735939843914,-3240.53,0.00011997,2]
[347598860,1735939843923,-1362.98,0.00011997,2]
[347598861,1735939843933,-1582.36,0.00011997,2]
[347598862,1735939843943,-944.5,0.00011997,2]
[347598863,1735939843953,-639.51,0.00011997,2]
[347598864,1735939843963,-500.0,0.00011997,2]
[347598865,1735939843972,-818.22,0.00011997,2]
[347598866,1735939843981,-2089.45,0.00011997,2]
[347598867,1735939843991,-1344.95,0.00011997,2]
[347598868,1735939844001,-593.97,0.00011997,2]
[347598869,1735939844010,-500.0,0.00011997,2]
[347598870,1735939844020,-500.0,0.00011997,2]
[347598871,1735939844030,-177.178,0.00011998,2]
[347598872,1735939844039,-3104.235,0.00011998,2]
[347598873,1735939844049,-800.0,0.00012088,2]
[347598874,1735939844058,-747.61953557,0.00012089,2]
[347598875,1735939844067,-20000.0,0.000121,2]
[347598876,1735939844076,-500.0,0.00012166,2]
[347598877,1735939844085,-216.20802089,0.00012166,2]
[347598878,1735939844097,-283.79197911,0.00012166,2]
[347598879,1735939844107,-460.58857341,0.00012166,2]
[347598881,1735939845959,-26372.76463088,0.0001,2]
[347598882,1735939845970,-192.36,0.00011898,2]
[347598883,1735939845979,-500.0,0.00011898,2]
[347598884,1735939845990,-39.41142659,0.00012166,2]
[347598885,1735939845998,-500.0,0.00012166,2]
[347598886,1735939846008,-500.0,0.00012166,2]
[347598887,1735939846017,-500.0,0.00012166,2]
[347598888,1735939846026,-575.48,0.00012166,2]
[347598889,1735939846035,-500.0,0.00012166,2]
[347598890,1735939846044,-529.49,0.00012166,2]
[347598891,1735939846053,-599.84,0.00012166,2]
[347598892,1735939846062,-500.0,0.00012166,2]
[347598893,1735939846072,-500.0,0.00012166,2]
[347598894,1735939846081,-500.0,0.00012166,2]
[347598895,1735939846090,-500.0,0.00012166,2]
[347598896,1735939846100,-500.0,0.00012166,2]
[347598897,1735939846109,-500.0,0.00012166,2]
[347598898,1735939846120,-500.0,0.00012166,2]
[347598899,1735939846129,-500.0,0.00012166,2]
[347598900,1735939846138,-500.0,0.00012166,2]
[347598901,1735939846148,-500.0,0.00012166,2]
[347598902,1735939846157,-500.0,0.00012166,2]
[347598903,1735939846166,-865.69,0.00012166,2]
[347598904,1735939846175,-624.36,0.00012166,2]
[347598905,1735939846185,-575.88,0.00012166,2]
[347598906,1735939846194,-719.01,0.00012166,2]
[347598907,1735939846203,-500.0,0.00012166,2]
[347598908,1735939846213,-500.0,0.00012166,2]
[347598909,1735939846223,-500.0,0.00012166,2]
[347598910,1735939846232,-500.0,0.00012166,2]
[347598911,1735939846242,-500.0,0.00012166,2]
[347598913,1735939846251,-500.0,0.00012166,2]
[347598915,1735939846261,-500.0,0.00012166,2]
[347598917,1735939846270,-500.0,0.00012166,2]
[347598918,1735939846279,-572.51,0.00012166,2]
[347598919,1735939846288,-500.0,0.00012166,2]
[347598920,1735939846297,-500.0,0.00012166,2]
[347598921,1735939846306,-500.0,0.00012166,2]
[347598922,1735939846315,-500.0,0.00012166,2]
[347598924,1735939846325,-500.0,0.00012166,2]
[347598926,1735939846335,-573.41,0.00012166,2]
[347598928,1735939846344,-500.0,0.00012166,2]
[347598930,1735939846354,-500.0,0.00012166,2]
[347598932,1735939846363,-500.0,0.00012166,2]
[347598934,1735939846373,-500.0,0.00012166,2]
[347598936,1735939846382,-500.0,0.00012166,2]
[347598938,1735939846391,-1404.55,0.00012166,2]
[347598940,1735939846400,-500.0,0.00012166,2]
[347598942,1735939846409,-415.89,0.00012166,2]
[347598944,1735939846418,-547.57,0.00012166,2]
[347598946,1735939846427,-500.0,0.00012166,2]
[347598948,1735939846437,-500.0,0.00012166,2]
[347598950,1735939846446,-500.0,0.00012166,2]
[347598952,1735939846455,-3441.03,0.00012166,2]
[347598954,1735939846464,-500.0,0.00012166,2]
[347598956,1735939846474,-598.47,0.00012166,2]
[347598958,1735939846483,-500.0,0.00012166,2]
[347598960,1735939846492,-500.0,0.00012166,2]
[347598962,1735939846501,-500.0,0.00012166,2]
[347598964,1735939846511,-500.0,0.00012166,2]
[347598966,1735939846521,-590.99,0.00012166,2]
[347598968,1735939846530,-502.17,0.00012166,2]
[347598970,1735939846539,-500.0,0.00012166,2]
[347598972,1735939846548,-560.02,0.00012166,2]
[347598974,1735939846557,-500.0,0.00012166,2]
[347598976,1735939846568,-500.0,0.00012166,2]
[347598978,1735939846580,-843.99,0.00012166,2]
[347598980,1735939846589,-500.0,0.00012166,2]
[347598982,1735939846598,-500.0,0.00012166,2]
[347598984,1735939846607,-515.48,0.00012166,2]
[347598986,1735939846618,-331.82,0.00012166,2]
[347598988,1735939846627,-500.0,0.00012166,2]
[347598990,1735939846636,-500.0,0.00012166,2]
[347598992,1735939846647,-650.32,0.00012166,2]
[347598994,1735939846656,-500.0,0.00012166,2]
[347598996,1735939846666,-500.0,0.00012166,2]
[347598998,1735939846676,-500.0,0.00012166,2]
[347599000,1735939846686,-500.0,0.00012166,2]
[347599002,1735939846695,-500.0,0.00012166,2]
[347599004,1735939846704,-781.21,0.00012166,2]
[347599006,1735939846713,-1018.82,0.00012166,2]
[347599008,1735939846722,-500.0,0.00012166,2]
[347599010,1735939846731,-500.0,0.00012167,2]
[347599012,1735939846741,-500.0,0.00012167,2]
[347599014,1735939846750,-3594.48,0.00012167,2]
[347599016,1735939846759,-500.0,0.00012167,2]
[347599018,1735939846769,-500.0,0.00012167,2]
[347599020,1735939846777,-1215.33,0.00012167,2]
[347599022,1735939846786,-818.92,0.00012167,2]
[347599024,1735939846795,-946.35,0.00012167,2]
[347599026,1735939846805,-792.95,0.00012167,2]
[347599028,1735939846814,-1000.0,0.00012167,2]
[347599030,1735939846823,-897.83,0.00012167,2]
[347599032,1735939846832,-737.06,0.00012167,2]
[347599034,1735939846841,-1662.46,0.00012167,2]
[347599036,1735939846850,-757.71,0.00012172,2]
[347599038,1735939846859,-3140.2,0.00012172,2]
[347599040,1735939846869,-500.0,0.00012172,2]
[347599041,1735939846878,-500.0,0.00012172,2]
[347599044,1735939846887,-547.69,0.00012172,2]
[347599045,1735939846898,-500.0,0.00012172,2]
[347599047,1735939846908,-905.65,0.00012172,2]
[347599050,1735939846917,-186.32,0.00012172,2]
[347599052,1735939846926,-1035.65,0.00012172,2]
[347599054,1735939846935,-2333.0,0.00012172,2]
[347599056,1735939846944,-1078.8,0.00012172,2]
[347599058,1735939846954,-500.0,0.00012172,2]
[347599059,1735939846963,-500.0,0.00012172,2]
[347599061,1735939846972,-985.65,0.00012172,2]
[347599063,1735939846981,-500.0,0.00012172,2]
[347599065,1735939846990,-500.0,0.00012172,2]
[347599067,1735939846999,-996.78,0.00012172,2]
[347599069,1735939847008,-721.71,0.00012172,2]
[347599071,1735939847017,-500.0,0.00012172,2]
[347599073,1735939847025,-638.57,0.00012172,2]
[347599075,1735939847034,-500.0,0.00012172,2]
[347599077,1735939847044,-500.0,0.00012172,2]
[347599079,1735939847054,-178.77,0.00012172,2]
[347599081,1735939847063,-500.0,0.00012172,2]
[347599083,1735939847072,-681.04,0.00012172,2]
[347599085,1735939847081,-500.0,0.00012172,2]
[347599087,1735939847090,-500.0,0.00012172,2]
[347599089,1735939847099,-500.0,0.00012172,2]
[347599091,1735939847108,-500.0,0.00012172,2]
[347599093,1735939847118,-595.79641472,0.00012172,2]
[347599095,1735939847127,-500.0,0.00012172,2]
[347599097,1735939847136,-206.68,0.00012173,2]
[347599099,1735939847146,-500.0,0.00012173,2]
[347599101,1735939847155,-500.0,0.00012173,2]
[347599103,1735939847164,-185.11,0.00012173,2]
[347599105,1735939847173,-348.01,0.00012173,2]
[347599107,1735939847182,-500.0,0.00012173,2]
[347599109,1735939847192,-500.0,0.00012173,2]
[347599111,1735939847201,-500.0,0.00012173,2]
[347599113,1735939847210,-500.0,0.00012173,2]
[347599116,1735939847224,-500.0,0.00012173,2]
[347599118,1735939847233,-500.0,0.00012173,2]
[347599120,1735939847242,-500.0,0.00012173,2]
[347599122,1735939847251,-168.09,0.00012173,2]
[347599124,1735939847260,-500.0,0.00012173,2]
[347599126,1735939847269,-500.0,0.00012173,2]
[347599128,1735939847278,-500.0,0.00012173,2]
[347599130,1735939847287,-500.0,0.00012173,2]
[347599131,1735939847296,-571.32,0.00012173,2]
[347599134,1735939847306,-500.0,0.00012173,2]
[347599136,1735939847315,-500.0,0.00012173,2]
[347599137,1735939847324,-500.0,0.00012173,2]
[347599139,1735939847333,-278.89,0.00012173,2]
[347599141,1735939847342,-820.23,0.00012173,2]
[347599143,1735939847351,-500.0,0.00012173,2]
[347599145,1735939847360,-500.0,0.00012173,2]
[347599147,1735939847370,-536.35,0.00012173,2]
[347599150,1735939847382,-500.0,0.00012173,2]
[347599152,1735939847392,-325.62,0.00012173,2]
[347599154,1735939847402,-425.68,0.00012173,2]
[347599156,1735939847411,-500.0,0.00012173,2]
[347599158,1735939847420,-500.0,0.00012173,2]
[347599160,1735939847429,-500.0,0.00012173,2]
[347599162,1735939847438,-304.294566,0.00012173,2]
[347599164,1735939847447,-500.0,0.00012173,2]
[347599166,1735939847456,-500.0,0.00012173,2]
[347599168,1735939847465,-500.0,0.00012173,2]
[347599169,1735939847474,-389.73,0.00012173,2]
[347599171,1735939847482,-2330.73,0.00012173,2]
[347599173,1735939847491,-214.069256,0.00012173,2]
[347599175,1735939847500,-500.0,0.00012173,2]
[347599177,1735939847510,-500.0,0.00012173,2]
[347599179,1735939847519,-462.3,0.00012173,2]
[347599181,1735939847528,-500.0,0.00012173,2]
[347599183,1735939847537,-205.39,0.00012173,2]
[347599185,1735939847546,-500.0,0.00012173,2]
[347599187,1735939847555,-500.0,0.00012173,2]
[347599189,1735939847566,-500.0,0.00012173,2]
[347599191,1735939847579,-500.0,0.00012173,2]
[347599193,1735939847588,-215.74,0.00012173,2]
[347599195,1735939847597,-548.81,0.00012173,2]
[347599197,1735939847606,-558.68,0.00012173,2]
[347599199,1735939847617,-233.62,0.00012173,2]
[347599201,1735939847626,-392.4,0.00012173,2]
[347599203,1735939847636,-500.0,0.00012173,2]
[347599205,1735939847647,-500.0,0.00012173,2]
[347599207,1735939847656,-500.0,0.00012173,2]
[347599209,1735939847666,-500.0,0.00012173,2]
[347599211,1735939847675,-500.0,0.00012173,2]
[347599213,1735939847683,-500.0,0.00012173,2]
[347599215,1735939847693,-500.0,0.00012173,2]
[347599217,1735939847702,-500.0,0.00012173,2]
[347599219,1735939847711,-550.02,0.00012173,2]
[347599221,1735939847720,-500.0,0.00012173,2]
[347599223,1735939847729,-500.0,0.00012173,2]
[347599225,1735939847738,-500.0,0.00012173,2]
[347599227,1735939847747,-500.0,0.00012173,2]
[347599229,1735939847756,-300.35,0.00012173,2]
[347599231,1735939847765,-500.0,0.00012173,2]
[347599233,1735939847774,-500.0,0.00012173,2]
[347599235,1735939847783,-500.0,0.00012173,2]
[347599237,1735939847792,-403.26,0.00012173,2]
[347599239,1735939847801,-500.0,0.00012173,2]
[347599241,1735939847810,-1676.75,0.00012173,2]
[347599243,1735939847819,-500.0,0.00012173,2]
[347599245,1735939847829,-265.06,0.00012173,2]
[347599247,1735939847838,-326.12,0.00012173,2]
[347599249,1735939847847,-500.0,0.00012173,2]
[347599251,1735939847856,-500.0,0.00012173,2]
[347599253,1735939847866,-500.0,0.00012173,2]
[347599255,1735939847875,-500.0,0.00012173,2]
[347599257,1735939847885,-500.0,0.00012173,2]
[347599259,1735939847897,-500.0,0.00012173,2]
[347599261,1735939847906,-233.28,0.00012173,2]
[347599263,1735939847916,-500.0,0.00012173,2]
[347599265,1735939847926,-184.74,0.00012173,2]
[347599267,1735939847935,-263.27,0.00012173,2]
[347599269,1735939847944,-500.0,0.00012173,2]
[347599271,1735939847953,-500.0,0.00012173,2]
[347599273,1735939847963,-500.0,0.00012173,2]
[347599275,1735939847972,-500.0,0.00012173,2]
[347599277,1735939847982,-500.0,0.00012173,2]
[347599279,1735939847991,-629.05,0.00012173,2]
[347599281,1735939848000,-500.0,0.00012173,2]
[347599283,1735939848009,-500.0,0.00012173,2]
[347599285,1735939848019,-500.0,0.00012173,2]
[347599287,1735939848028,-415.59,0.00012173,2]
[347599289,1735939848038,-500.0,0.00012173,2]
[347599291,1735939848047,-500.0,0.00012173,2]
[347599293,1735939848056,-500.0,0.00012173,2]
[347599295,1735939848065,-500.0,0.00012173,2]
[347599297,1735939848075,-500.0,0.00012173,2]
[347599299,1735939848084,-500.0,0.00012173,2]
[347599301,1735939848093,-500.0,0.00012173,2]
[347599303,1735939848102,-500.0,0.00012173,2]
[347599305,1735939848111,-500.0,0.00012173,2]
[347599307,1735939848121,-500.0,0.00012173,2]
[347599309,1735939848130,-500.0,0.00012173,2]
[347599311,1735939848139,-500.0,0.00012173,2]
[347599312,1735939848148,-500.0,0.00012173,2]
[347599315,1735939848158,-500.0,0.00012173,2]
[347599317,1735939848167,-500.0,0.00012173,2]
[347599318,1735939848177,-500.0,0.00012173,2]
[347599320,1735939848186,-500.0,0.00012173,2]
[347599323,1735939848196,-500.0,0.00012173,2]
[347599324,1735939848206,-199.55,0.00012173,2]
[347599327,1735939848215,-186.95,0.00012173,2]
[347599329,1735939848224,-500.0,0.00012173,2]
[347599330,1735939848234,-500.0,0.00012173,2]
[347599349,1735939848398,-170.62,0.00012173,2]
[347599351,1735939848410,-500.0,0.00012173,2]
[347599353,1735939848419,-500.0,0.00012173,2]
[347599355,1735939848429,-500.0,0.00012173,2]
[347599357,1735939848438,-500.0,0.00012173,2]
[347599359,1735939848448,-5000.0,0.00012173,2]
[347599361,1735939848457,-564.41,0.00012173,2]
[347599363,1735939848466,-500.0,0.00012173,2]
[347599365,1735939848477,-500.0,0.00012173,2]
[347599367,1735939848486,-341.26,0.00012173,2]
[347599369,1735939848496,-500.0,0.00012173,2]
[347599371,1735939848504,-500.0,0.00012173,2]
[347599373,1735939848514,-500.0,0.00012173,2]
[347599375,1735939848523,-500.0,0.00012173,2]
[347599377,1735939848532,-500.0,0.00012173,2]
[347599379,1735939848541,-500.0,0.00012173,2]
[347599381,1735939848551,-500.0,0.00012173,2]
[347599383,1735939848560,-500.0,0.00012173,2]
[347599385,1735939848570,-500.0,0.00012173,2]
[347599387,1735939848581,-500.0,0.00012173,2]
[347599389,1735939848591,-500.0,0.00012173,2]
[347599391,1735939848600,-500.0,0.00012173,2]
[347599393,1735939848611,-500.0,0.00012173,2]
[347599395,1735939848620,-2204.14,0.00012173,2]
[347599397,1735939848629,-500.0,0.00012173,2]
[347599399,1735939848639,-500.0,0.00012173,2]
[347599401,1735939848650,-1059.56,0.00012173,2]
[347599403,1735939848660,-500.0,0.00012173,2]
[347599405,1735939848669,-500.0,0.00012173,2]
[347599407,1735939848678,-890.53,0.00012173,2]
[347599409,1735939848688,-500.0,0.00012173,2]
[347599411,1735939848698,-500.0,0.00012173,2]
[347599413,1735939848708,-500.0,0.00012173,2]
[347599415,1735939848718,-1026.3,0.00012173,2]
[347599417,1735939848727,-500.0,0.00012173,2]
[347599419,1735939848737,-500.0,0.00012173,2]
[347599421,1735939848747,-500.0,0.00012173,2]
[347599423,1735939848756,-500.0,0.00012173,2]
[347599425,1735939848765,-500.0,0.00012173,2]
[347599427,1735939848774,-500.0,0.00012173,2]
[347599429,1735939848783,-500.0,0.00012173,2]
[347599431,1735939848793,-500.0,0.00012173,2]
[347599433,1735939848802,-500.0,0.00012173,2]
[347599435,1735939848812,-178.69,0.00012173,2]
[347599437,1735939848821,-500.0,0.00012173,2]
[347599439,1735939848831,-500.0,0.00012173,2]
[347599441,1735939848841,-1679.9,0.00012173,2]
[347599443,1735939848850,-500.0,0.00012173,2]
[347599445,1735939848860,-834.89,0.00012173,2]
[347599447,1735939848869,-500.0,0.00012173,2]
[347599449,1735939848878,-526.58,0.00012173,2]
[347599451,1735939848887,-500.0,0.00012173,2]
[347599452,1735939848897,-500.0,0.00012173,2]
[347599453,1735939848906,-500.0,0.00012173,2]
[347599454,1735939848915,-500.0,0.00012173,2]
[347599455,1735939848924,-500.0,0.00012173,2]
[347599456,1735939848933,-500.0,0.00012173,2]
[347599457,1735939848941,-500.0,0.00012173,2]
[347599458,1735939848950,-500.0,0.00012173,2]
[347599459,1735939848959,-500.0,0.00012173,2]
[347599460,1735939848969,-500.0,0.00012173,2]
[347599461,1735939848977,-500.0,0.00012173,2]
[347599462,1735939848986,-500.0,0.00012173,2]
[347599463,1735939848995,-500.0,0.00012173,2]
[347599464,1735939849004,-1616.56,0.00012173,2]
[347599465,1735939849013,-500.0,0.00012173,2]
[347599467,1735939849022,-500.0,0.00012173,2]
[347599468,1735939849031,-2444.79,0.00012173,2]
[347599470,1735939849040,-500.0,0.00012173,2]
[347599472,1735939849049,-500.0,0.00012173,2]
[347599474,1735939849059,-500.0,0.00012173,2]
[347599476,1735939849069,-500.0,0.00012173,2]
[347599478,1735939849078,-500.0,0.00012173,2]
[347599480,1735939849087,-500.0,0.00012173,2]
[347599482,1735939849096,-500.0,0.00012173,2]
[347599484,1735939849106,-601.78,0.00012173,2]
[347599486,1735939849115,-1454.43,0.00012173,2]
[347599488,1735939849124,-544.5,0.00012173,2]
[347599490,1735939849134,-500.0,0.00012173,2]
[347599492,1735939849144,-159.96,0.00012173,2]
[347599494,1735939849153,-500.0,0.00012173,2]
[347599496,1735939849162,-500.0,0.00012173,2]
[347599498,1735939849171,-500.0,0.00012173,2]
[347599500,1735939849180,-584.29,0.00012173,2]
[347599502,1735939849189,-500.0,0.00012173,2]
[347599504,1735939849198,-500.0,0.00012173,2]
[347599506,1735939849208,-531.81,0.00012173,2]
[347599508,1735939849217,-500.0,0.00012173,2]
[347599510,1735939849226,-500.0,0.00012173,2]
[347599512,1735939849235,-226.81,0.00012173,2]
[347599514,1735939849244,-500.0,0.00012173,2]
[347599516,1735939849253,-314.1,0.00012173,2]
[347599518,1735939849262,-220.66,0.00012173,2]
[347599520,1735939849271,-5526.05,0.00012173,2]
[347599522,1735939849281,-500.0,0.00012173,2]
[347599524,1735939849290,-500.0,0.00012173,2]
[347599526,1735939849299,-321.3,0.00012173,2]
[347599528,1735939849309,-500.0,0.00012173,2]
[347599530,1735939849319,-500.0,0.00012173,2]
[347599532,1735939849328,-3782.32,0.00012173,2]
[347599534,1735939849337,-1812.8,0.00012179,2]
[347599536,1735939849346,-5770.26,0.00012179,2]
[347599538,1735939849355,-500.0,0.00012179,2]
[347599540,1735939849364,-151.2426981,0.00012199,2]
[347599542,1735939849373,-450.59329062,0.000122,2]
[347599544,1735939849382,-25000.0,0.000122,2]
[347599546,1735939849393,-151.24269809,0.000122,2]
[347599548,1735939849402,-2000.0,0.00012202,2]
[347599550,1735939849411,-1859.0,0.00012209,2]
[347599552,1735939849421,-819.0,0.00012209,2]
[347599554,1735939849430,-1258.0,0.00012209,2]
[347599556,1735939849439,-915.072,0.00012209,2]
[347599558,1735939849448,-3775.0,0.00012209,2]
[347599560,1735939849457,-940.393,0.00012209,2]
[347599562,1735939849466,-536.0,0.00012209,2]
[347599564,1735939849475,-2359.54359735,0.00012209,2]
[347599567,1735939849496,-1533.45640265,0.00012209,2]
[347599569,1735939849506,-2014.0,0.00012209,2]
[347599571,1735939849515,-150.0,0.00012209,2]
[347599573,1735939849525,-636.0,0.00012209,2]
[347599575,1735939849534,-1531.97782377,0.00012271,10]
[347599577,1735939849544,-500.0,0.00012271,2]
[347599579,1735939849553,-500.0,0.00012271,2]
[347599581,1735939849563,-500.0,0.00012271,2]
[347599583,1735939849575,-500.0,0.00012271,2]
[347599585,1735939849588,-500.0,0.00012271,2]
[347599587,1735939849598,-500.0,0.00012271,2]
[347599589,1735939849607,-500.0,0.00012271,2]
[347599591,1735939849616,-500.0,0.00012271,2]
[347599593,1735939849626,-500.0,0.00012271,2]
[347599595,1735939849634,-263.2,0.00012271,2]
[347599597,1735939849645,-500.0,0.00012271,2]
[347599599,1735939849659,-500.0,0.00012271,2]
[347599601,1735939849668,-500.0,0.00012271,2]
[347599603,1735939849680,-500.0,0.00012271,2]
[347599605,1735939849689,-500.0,0.00012271,2]
[347599607,1735939849698,-500.0,0.00012271,2]
[347599609,1735939849707,-500.0,0.00012271,2]
[347599611,1735939849717,-268.35,0.00012271,2]
[347599613,1735939849726,-500.0,0.00012271,2]
[347599615,1735939849735,-500.0,0.00012271,2]
[347599617,1735939849744,-500.0,0.00012271,2]
[347599619,1735939849753,-500.0,0.00012271,2]
[347599621,1735939849763,-500.0,0.00012271,2]
[347599623,1735939849772,-500.0,0.00012271,2]
[347599625,1735939849781,-376.07,0.00012271,2]
[347599627,1735939849790,-500.0,0.00012271,2]
[347599629,1735939849799,-500.0,0.00012271,2]
[347599631,1735939849809,-500.0,0.00012271,2]
[347599633,1735939849818,-1040.12,0.00012271,2]
[347599635,1735939849827,-1955.45,0.00012271,2]
[347599637,1735939849837,-1178.25,0.00012271,2]
[347599640,1735939849846,-3240.53,0.00012271,2]
[347599641,1735939849855,-1362.98,0.00012271,2]
[347599643,1735939849864,-1582.36,0.00012271,2]
[347599645,1735939849873,-944.5,0.00012271,2]
[347599647,1735939849883,-639.51,0.00012271,2]
[347599650,1735939849892,-409.83,0.00012271,2]
[347599651,1735939849904,-818.22,0.00012271,2]
[347599653,1735939849913,-2089.45,0.00012271,2]
[347599655,1735939849924,-1344.95,0.00012271,2]
[347599657,1735939849933,-593.97,0.00012271,2]
[347599660,1735939849943,-500.0,0.00012271,2]
[347599661,1735939849952,-500.0,0.00012271,2]
[347599663,1735939849961,-160.0,0.00012274,2]
[347599665,1735939849970,-150.0,0.00012298,2]
[347599667,1735939849980,-183.08,0.00012299,2]
[347599669,1735939849989,-500.0,0.00012299,2]
[347599671,1735939849998,-177.02823753,0.00012299,2]
[347599673,1735939850007,-971.79,0.00012299,2]
[347599675,1735939850017,-1142.0,0.00012299,2]
[347599677,1735939850026,-39778.14177793,0.000123,2]
[347599679,1735939850035,-295134.78575812,0.000123,2]
[347599682,1735939850047,-267595.62376834,0.000123,2]
[347599686,1735939850075,-500.0,0.00011899,2]
[347599688,1735939850084,-1473.17459424,0.000123,2]
[347599690,1735939850095,-6887.82989209,0.000123,2]
[347599692,1735939850108,-11143.50889527,0.000123,2]
[347599694,1735939850119,-540.441375,0.000123,2]
[347599697,1735939850130,-394.72,0.000123,2]
[347599699,1735939850143,-853.05,0.000123,2]
[347599701,1735939850153,-704.82880413,0.000123,2]
[347599703,1735939850164,-1216.1,0.000123,2]
[347600639,1735940021973,500.0,0.0002,120]
[347600642,1735940555377,-1000.0,0.00013698,30]
[347600643,1735940556954,-1000.0,0.00013698,30]
[347600644,1735940558704,-1000.0,0.00013698,30]
[347600645,1735940560080,-1000.0,0.00013698,30]
[347600646,1735940582289,-1000.0,0.00013698,30]
[347600647,1735940583592,-1000.0,0.00013698,30]
[347600648,1735940584684,-1000.0,0.00013698,30]
[347600649,1735940585860,-1000.0,0.00013816,30]
[347600650,1735940586902,-1000.0,0.0001409,30]
[347600651,1735940587963,-1000.0,0.00014364,30]
[347600652,1735940600749,-825.0,0.00014638,30]
[347600653,1735940617803,-175.0,0.00014638,30]
[347600654,1735940617839,-825.0,0.00014912,30]
[347600655,1735940621373,-175.0,0.00014912,30]
[347600656,1735940791440,150.0,0.00019837,120]
[347600657,1735940797104,-169.66092911,8.909e-05,2]
[347600667,1735940824596,-842.0,0.00015186,30]
[347600668,1735940832948,-800.0,0.00013698,30]
[347600669,1735940850791,150.0,0.00017197,120]
[347600670,1735940880389,-200.0,0.00013698,30]
[347600671,1735940880417,-1000.0,0.00013698,30]
[347600672,1735940880444,-800.0,0.00013698,30]
[347600673,1735940885236,-200.0,0.00013698,30]
[347600674,1735940885262,-1000.0,0.00013698,30]
[347600675,1735940885289,-808.0,0.00013698,30]
[347600676,1735940912462,-185.0,0.00013698,30]
[347600677,1735940952081,-249.19907089,8.909e-05,2]
[347600678,1735940952102,-248.40125113,0.00010137,2]
[347600679,1735941016848,150.0,0.000108,30]
[347600693,1735941032129,-56.55874887,0.00010137,2]
[347600695,1735941032139,-587.31,0.00010405,2]
[347600696,1735941032148,-150.97,0.00010637,2]
[347600697,1735941032157,-200.0,0.00010722,2]
[347600698,1735941032166,-250.0,0.00010809,2]